[Event "GER-chT States Women 2022"]
[Site "Braunfels"]
[Date "2022.06.17"]
[Round "3.14"]
[White "Spiel, Marianne"]
[Black "Landenberger, Anja Kathrin"]
[Result "1-0"]
[ECO "B10"]
[WhiteElo "1910"]
[BlackElo "1767"]
[Annotator "NA RC"]
[PlyCount "61"]
[EventDate "2022.06.15"]
[EventType "swiss"]
[EventCountry "GER"]
[SourceTitle "playchess.com"]
[Source "ChessBase"]
[SourceQuality "1"]
[TimeControl "40/5400+30:1800+30"]

1. e4 {[%emt 0:00:03]} c6 {[%emt 0:00:37]} 2. c4 {[%emt 0:00:06]} d5 {[%emt 0:02:56]} 3. exd5 {[%emt 0:00:06]} cxd5 {[%emt 0:00:09]} 4. cxd5 {[%emt 0:00:05]} Qxd5 {[%emt 0:00:27]} 5. Nc3 {[%emt 0:00:14]} Qd8 {[%emt 0:02:57]} 6. Nf3 {[%emt 0:00:27]} Nc6 {[%emt 0:01:20]} 7. Bc4 {[%emt 0:01:54]} e6 {[%emt 0:01:51]} 8. O-O {[%emt 0:01:36]} Nf6 {[%emt 0:04:04]} 9. d4 {[%emt 0:01:24]} Be7 {[%emt 0:00:48]} 10. d5 {[%emt 0:03:47]} exd5 {[%emt 0:03:56]} 11. Nxd5 {[%emt 0:00:31]} Nxd5 {[%emt 0:00:45]} 12. Bxd5 {[%emt 0:01:15]} Nb4 {[%emt 0:05:01]} 13. Be4 {[%emt 0:05:41]} Qxd1 {[%emt 0:07:05]} 14. Rxd1 {[%emt 0:00:52]} f5 {[%emt 0:02:10]} 15. Bb1 {[%emt 0:00:30]} Nc6 {[%emt 0:02:09]} 16. a3 {[%emt 0:09:53]} O-O {[%emt 0:09:37]} 17. Ba2+ {[%emt 0:00:47]} Kh8 {[%emt 0:00:10]} 18. Ng5 {[%emt 0:06:29]} h6 {[%emt 0:04:39]} 19. Ne6 {[%emt 0:04:15]} Rf6 {[%emt 0:02:23]} 20. Nc7 {[%emt 0:05:02]} Rb8 {[%emt 0:01:55]} 21. Nd5 {[%emt 0:05:52]} Rg6 {[%emt 0:15:43]} 22. Nxe7 {[%emt 0:01:00]} Nxe7 {[%emt 0:00:13]} 23. Rd8+ {[%emt 0:00:24]} Kh7 {[%emt 0:00:28]} 24. Bf4 {[%emt 0:00:31]} Ra8 {[%emt 0:00:50]} 25. Re8 {[%emt 0:00:55]} Rg4 {[%emt 0:07:29]} 26. g3 {[%emt 0:09:19]} Nc6 {[%emt 0:02:01]} 27. f3 {[%emt 0:02:30]} Rxf4 {[%emt 0:01:47]} 28. gxf4 {[%emt 0:00:09]} Rb8 {[%emt 0:01:42]} 29. Bd5 {[%emt 0:07:15]} Nd4 {[%emt 0:06:22]} 30. Rd1 {[%emt 0:07:07]} Ne2+ {[%emt 0:01:07]} 31. Rxe2 {[%emt 0:00:34]} 1-0

[Event "GER-chT States Women 2022"]
[Site "Braunfels"]
[Date "2022.06.17"]
[Round "3.15"]
[White "Kuehnel, Jutta"]
[Black "Schilay, Eva"]
[Result "1-0"]
[ECO "C54"]
[WhiteElo "1547"]
[BlackElo "1691"]
[Annotator "NA RC"]
[PlyCount "85"]
[EventDate "2022.06.15"]
[EventType "swiss"]
[EventCountry "GER"]
[SourceTitle "playchess.com"]
[Source "ChessBase"]
[SourceQuality "1"]
[TimeControl "40/5400+30:1800+30"]

1. e4 {[%emt 0:00:02]} e5 {[%emt 0:00:07]} 2. Nf3 {[%emt 0:00:04]} Nc6 {[%emt 0:00:05]} 3. Bc4 {[%emt 0:00:12]} Bc5 {[%emt 0:00:59]} 4. c3 {[%emt 0:01:16]} Nf6 {[%emt 0:08:37]} 5. d4 {[%emt 0:02:30]} exd4 {[%emt 0:09:30]} 6. cxd4 {[%emt 0:00:09]} Bb4+ {[%emt 0:00:29]} 7. Nc3 {[%emt 0:00:22]} d5 {[%emt 0:07:34]} 8. exd5 {[%emt 0:07:16]} Nxd5 {[%emt 0:00:08]} 9. O-O {[%emt 0:18:42]} Nxc3 {[%emt 0:22:27]} 10. Qe1+ {[%emt 0:13:58]} Ne2+ {[%emt 0:03:02]} 11. Qxe2+ {[%emt 0:00:34]} Qe7 {[%emt 0:00:03]} 12. Qxe7+ {[%emt 0:04:17]} Nxe7 {[%emt 0:00:55]} 13. Bf4 {[%emt 0:02:11]} Bd7 {[%emt 0:13:55]} 14. a3 {[%emt 0:04:10]} Bd6 {[%emt 0:06:39]} 15. Bxd6 {[%emt 0:01:17]} cxd6 {[%emt 0:00:01]} 16. Rfe1 {[%emt 0:00:23]} Bg4 {[%emt 0:03:14]} 17. Ng5 {[%emt 0:02:57]} Bh5 {[%emt 0:01:31]} 18. Re3 {[%emt 0:05:48]} Kf8 {[%emt 0:04:06]} 19. Rae1 {[%emt 0:01:05]} Nf5 {[%emt 0:01:45]} 20. Re4 {[%emt 0:04:00]} Bg6 {[%emt 0:01:18]} 21. Bb5 {[%emt 0:01:08]} f6 {[%emt 0:00:29]} 22. Ne6+ {[%emt 0:07:23]} Kf7 {[%emt 0:07:20]} 23. Nf4 {[%emt 0:03:00]} Rhd8 {[%emt 0:01:36]} 24. Bc4+ {[%emt 0:04:30]} d5 {[%emt 0:02:08]} 25. Bxd5+ {[%emt 0:03:26]} Rxd5 {[%emt 0:00:35]} 26. Nxd5 {[%emt 0:00:10]} Rd8 {[%emt 0:01:01]} 27. Nc3 {[%emt 0:00:20]} Nxd4 {[%emt 0:01:22]} 28. Re7+ {[%emt 0:00:51]} Kf8 {[%emt 0:00:02]} 29. Rxb7 {[%emt 0:03:15]} Nc6 {[%emt 0:00:49]} 30. h3 {[%emt 0:00:42]} a5 {[%emt 0:02:01]} 31. Rd1 {[%emt 0:02:10]} Bc2 {[%emt 0:00:52]} 32. Rxd8+ {[%emt 0:00:37]} Nxd8 {[%emt 0:00:01]} 33. Ra7 {[%emt 0:00:42]} a4 {[%emt 0:00:30]} 34. Nxa4 {[%emt 0:01:05]} Nc6 {[%emt 0:00:01]} 35. Ra8+ {[%emt 0:00:19]} Ke7 {[%emt 0:00:12]} 36. Nc3 {[%emt 0:00:42]} Kd6 {[%emt 0:00:47]} 37. Re8 {[%emt 0:02:30]} Kc5 {[%emt 0:00:38]} 38. Rc8 {[%emt 0:00:25]} Kd6 {[%emt 0:00:45]} 39. Nb5+ {[%emt 0:00:48]} Kd5 {[%emt 0:00:29]} 40. Rxc6 {[%emt 0:00:19]} Ba4 {[%emt 0:00:53]} 41. Nc3+ {[%emt 0:31:45]} Kxc6 {[%emt 0:01:54]} 42. Nxa4 {[%emt 0:00:00]} Kb5 43. b3 1-0

[Event "GER-chT States Women 2022"]
[Site "Braunfels"]
[Date "2022.06.17"]
[Round "3.16"]
[White "Schaefer, Ann-Kathrin"]
[Black "Chung, Simone"]
[Result "1-0"]
[ECO "D05"]
[WhiteElo "1680"]
[BlackElo "1458"]
[Annotator "NA RC"]
[PlyCount "83"]
[EventDate "2022.06.15"]
[EventType "swiss"]
[EventCountry "GER"]
[SourceTitle "playchess.com"]
[Source "ChessBase"]
[SourceQuality "1"]
[TimeControl "40/5400+30:1800+30"]

1. d4 {[%emt 0:00:04]} d5 {[%emt 0:00:13]} 2. Nf3 {[%emt 0:00:05]} e6 {[%emt 0:00:25]} 3. e3 {[%emt 0:00:27]} Nf6 {[%emt 0:00:21]} 4. Bd3 {[%emt 0:00:52]} c5 {[%emt 0:01:01]} 5. O-O {[%emt 0:01:41]} Nc6 {[%emt 0:00:49]} 6. b3 {[%emt 0:02:32]} Be7 {[%emt 0:02:26]} 7. Bb2 {[%emt 0:01:31]} O-O {[%emt 0:00:50]} 8. Nbd2 {[%emt 0:03:27]} Bd7 {[%emt 0:01:37]} 9. c4 {[%emt 0:01:41]} Nb4 {[%emt 0:06:26]} 10. Be2 {[%emt 0:01:54]} Rc8 {[%emt 0:00:35]} 11. dxc5 {[%emt 0:04:18]} Bxc5 {[%emt 0:04:24]} 12. a3 {[%emt 0:01:47]} Nc6 {[%emt 0:04:00]} 13. b4 {[%emt 0:02:18]} Be7 {[%emt 0:01:17]} 14. c5 {[%emt 0:02:18]} b6 {[%emt 0:03:20]} 15. b5 {[%emt 0:05:48]} Na5 {[%emt 0:06:22]} 16. c6 {[%emt 0:01:32]} Be8 {[%emt 0:00:02]} 17. Bd3 {[%emt 0:09:10]} Kh8 {[%emt 0:13:20]} 18. Qc2 {[%emt 0:09:31]} h6 {[%emt 0:09:49]} 19. Rfd1 {[%emt 0:11:38]} Nb7 {[%emt 0:06:28]} 20. Nb3 {[%emt 0:10:36]} Nc5 {[%emt 0:07:54]} 21. Nxc5 {[%emt 0:01:46]} bxc5 {[%emt 0:07:11]} 22. e4 {[%emt 0:08:35]} Qb6 {[%emt 0:09:25]} 23. exd5 {[%emt 0:04:36]} exd5 {[%emt 0:00:17]} 24. Be5 {[%emt 0:02:50]} Ng4 {[%emt 0:06:57]} 25. Bf5 {[%emt 0:00:40]} Nxe5 {[%emt 0:01:15]} 26. Bxc8 {[%emt 0:01:18]} Nxf3+ {[%emt 0:00:19]} 27. gxf3 {[%emt 0:00:06]} Qxb5 {[%emt 0:00:26]} 28. Rab1 {[%emt 0:03:13]} Qxc6 {[%emt 0:00:34]} 29. Bb7 {[%emt 0:00:17]} Qf6 {[%emt 0:03:10]} 30. Bxd5 {[%emt 0:00:43]} Qh4 {[%emt 0:00:36]} 31. Qe4 {[%emt 0:01:33]} Qg5+ {[%emt 0:00:36]} 32. Qg4 {[%emt 0:01:00]} Qe5 {[%emt 0:00:55]} 33. Rb7 {[%emt 0:03:00]} Bf6 {[%emt 0:01:18]} 34. Rxa7 {[%emt 0:00:48]} Qc3 {[%emt 0:00:37]} 35. Qc4 {[%emt 0:01:32]} Qxc4 {[%emt 0:00:46]} 36. Bxc4 {[%emt 0:00:06]} Bd4 {[%emt 0:00:06]} 37. Ra8 {[%emt 0:01:33]} Kg8 {[%emt 0:00:01]} 38. a4 {[%emt 0:00:48]} Bc6 {[%emt 0:00:52]} 39. Rxf8+ {[%emt 0:01:17]} Kxf8 {[%emt 0:00:01]} 40. a5 {[%emt 0:00:35]} Bxf3 {[%emt 0:00:29]} 41. Re1 {[%emt 0:30:26]} Bc3 {[%emt 0:31:01]} 42. Re3 {[%emt 0:00:36]} 1-0

[Event "GER-chT States Women 2022"]
[Site "Braunfels"]
[Date "2022.06.17"]
[Round "3.17"]
[White "Tuzi, Bruna"]
[Black "Koehler, Inken"]
[Result "1/2-1/2"]
[ECO "B00"]
[WhiteElo "1999"]
[BlackElo "2002"]
[Annotator "NA RC"]
[PlyCount "136"]
[EventDate "2022.06.15"]
[EventType "swiss"]
[EventCountry "GER"]
[SourceTitle "playchess.com"]
[Source "ChessBase"]
[SourceQuality "1"]
[TimeControl "40/5400+30:1800+30"]

1. e4 {[%emt 0:00:04]} d6 {[%emt 0:00:06]} 2. Nc3 {[%emt 0:00:07]} Nf6 {[%emt 0:00:07]} 3. f4 {[%emt 0:00:06]} Nbd7 {[%emt 0:00:15]} 4. Nf3 {[%emt 0:00:32]} e5 {[%emt 0:01:21]} 5. Bc4 {[%emt 0:03:04]} Be7 {[%emt 0:05:39]} 6. d3 {[%emt 0:01:20]} c6 {[%emt 0:03:06]} 7. O-O {[%emt 0:22:34]} Qb6+ {[%emt 0:05:21]} 8. Kh1 {[%emt 0:02:01]} O-O {[%emt 0:00:34]} 9. f5 {[%emt 0:04:38]} Qc7 {[%emt 0:08:58]} 10. a4 {[%emt 0:01:24]} a5 {[%emt 0:15:38]} 11. Qe2 {[%emt 0:03:37]} b6 {[%emt 0:24:29]} 12. g4 {[%emt 0:02:43]} d5 {[%emt 0:10:36]} 13. Bb3 {[%emt 0:01:57]} dxe4 {[%emt 0:00:50]} 14. dxe4 {[%emt 0:00:25]} Ba6 {[%emt 0:04:30]} 15. Qe1 {[%emt 0:02:09]} Bxf1 {[%emt 0:00:52]} 16. Qxf1 {[%emt 0:00:05]} Nc5 {[%emt 0:02:04]} 17. g5 {[%emt 0:00:45]} Nxb3 {[%emt 0:06:28]} 18. cxb3 {[%emt 0:01:11]} Ne8 {[%emt 0:00:16]} 19. Qh3 {[%emt 0:02:14]} Rd8 {[%emt 0:00:39]} 20. Be3 {[%emt 0:05:16]} Rd3 {[%emt 0:00:34]} 21. Re1 {[%emt 0:01:36]} Bb4 {[%emt 0:00:52]} 22. g6 {[%emt 0:00:20]} fxg6 23. Ng5 {[%emt 0:00:18]} Nf6 {[%emt 0:05:15]} 24. Ne6 {[%emt 0:02:28]} Qf7 {[%emt 0:00:12]} 25. Nxf8 {[%emt 0:00:32]} Bxf8 {[%emt 0:00:13]} 26. fxg6 {[%emt 0:00:42]} hxg6 {[%emt 0:01:57]} 27. Qf1 {[%emt 0:00:24]} Rd7 {[%emt 0:01:50]} 28. Bxb6 {[%emt 0:00:58]} Qxb3 {[%emt 0:00:23]} 29. Bxa5 {[%emt 0:00:17]} Rf7 {[%emt 0:01:12]} 30. Qg2 {[%emt 0:01:33]} Nh5 {[%emt 0:00:26]} 31. Qd2 {[%emt 0:03:30]} Nf4 {[%emt 0:00:20]} 32. Rf1 {[%emt 0:01:13]} Qc4 {[%emt 0:00:07]} 33. Rf2 {[%emt 0:01:24]} Bc5 {[%emt 0:00:56]} 34. Rf3 {[%emt 0:00:15]} Bd4 {[%emt 0:00:29]} 35. h3 {[%emt 0:01:35]} Bxc3 {[%emt 0:00:39]} 36. Bxc3 {[%emt 0:00:33]} Qxe4 {[%emt 0:00:04]} 37. Qe3 {[%emt 0:01:02]} Qd5 {[%emt 0:00:50]} 38. Kh2 {[%emt 0:00:53]} g5 {[%emt 0:00:35]} 39. Rf2 {[%emt 0:02:37]} ({But not} 39. Bxe5 $2 Re7 40. Qb3 Rxe5 $19) 39... e4 {[%emt 0:00:40]} 40. a5 {[%emt 0:02:52]} Qd6 {[%emt 0:00:22]} 41. Rd2 {[%emt 0:38:08]} Nd5+ {[%emt 0:09:06]} 42. Qg3 {[%emt 0:00:00]} Qxg3+ {[%emt 0:00:31]} 43. Kxg3 {[%emt 0:00:00]} Rf3+ {[%emt 0:00:18]} 44. Kg4 {[%emt 0:00:00]} Nxc3 {[%emt 0:02:48]} 45. bxc3 {[%emt 0:00:00]} Rxc3 {[%emt 0:00:28]} 46. Ra2 {[%emt 0:00:00]} Rd3 {[%emt 0:01:14]} 47. a6 {[%emt 0:00:00]} Rd8 {[%emt 0:00:03]} 48. Kf5 $2 {[%emt 0:00:00]} ({And not} 48. a7 Ra8 $11) (48. Kxg5 $18 Kf7 49. Kf4) 48... e3 {[%emt 0:01:23]} 49. Ke4 {[%emt 0:00:00]} Kf7 {[%emt 0:02:52]} 50. Kxe3 {[%emt 0:00:00]} Ke6 {[%emt 0:00:17]} 51. a7 {[%emt 0:00:00]} Ra8 {[%emt 0:00:03]} 52. Kd4 {[%emt 0:00:00]} Kd6 {[%emt 0:01:10]} 53. Ra5 {[%emt 0:00:00]} c5+ $1 {[%emt 0:03:06]} 54. Kc4 {[%emt 0:00:00]} Kc6 {[%emt 0:00:25]} 55. Rxc5+ {[%emt 0:00:00]} Kb6 {[%emt 0:00:06]} 56. Rxg5 {[%emt 0:00:00]} Rxa7 {[%emt 0:01:07]} 57. Rg6+ {[%emt 0:00:00]} Ka5 {[%emt 0:00:06]} 58. Rg3 {[%emt 0:00:00]} Rf7 {[%emt 0:04:36]} 59. Kd5 {[%emt 0:00:00]} Kb6 {[%emt 0:00:23]} 60. Ke6 {[%emt 0:00:00]} Ra7 {[%emt 0:02:10]} 61. Rg5 {[%emt 0:00:00]} Ra4 {[%emt 0:04:03]} 62. Rxg7 {[%emt 0:00:00]} Rh4 {[%emt 0:00:05]} 63. Rg3 {[%emt 0:00:00]} Kc5 {[%emt 0:00:13]} 64. Kf5 {[%emt 0:00:00]} Rh8 $11 {[%emt 0:00:41]} 65. Rg5 {[%emt 0:00:00]} Kd6 {[%emt 0:00:55]} 66. Kg4 {[%emt 0:00:00]} Ke6 {[%emt 0:00:19]} 67. h4 {[%emt 0:00:00]} Kf7 {[%emt 0:00:43]} 68. h5 {[%emt 0:00:00]} Rg8 {[%emt 0:00:17]} 1/2-1/2

[Event "GER-chT States Women 2022"]
[Site "Braunfels"]
[Date "2022.06.17"]
[Round "3.18"]
[White "Braeutigam, Irina"]
[Black "Bluebaum, Johanna"]
[Result "0-1"]
[ECO "D05"]
[WhiteElo "2013"]
[BlackElo "2049"]
[Annotator "TA"]
[PlyCount "82"]
[EventDate "2022.06.15"]
[EventType "swiss"]
[EventCountry "GER"]
[SourceTitle "playchess.com"]
[Source "ChessBase"]
[SourceQuality "1"]
[TimeControl "40/5400+30:1800+30"]

{[%evp 18,82,18,18,36,12,15,0,27,0,0,-22,-27,-83,-77,-100,-101,-85,-84,-69,-51,-50,0,-71,-61,-59,-63,-77,-41,-78,-68,-100,-90,-111,-107,-145,-132,-158,-130,-119,-108,-174,-114,-279,-272,-286,-260,-335,-327,-338,-313,-377,-394,-522,-510,-620,-625,-687,-647,-549,-510,-505,-484,-29975,-29976,-29983,-29984]} 1. d4 {[%emt 0:00:04]} d5 {[%emt 0:00:03]} 2. Nf3 {[%emt 0:00:04]} Nf6 {[%emt 0:00:05]} 3. e3 {[%emt 0:00:03]} e6 {[%emt 0:00:08]} 4. b3 {[%emt 0:00:14]} c5 {[%emt 0:00:08]} 5. Bd3 {[%emt 0:00:57]} Nc6 {[%emt 0:00:18]} 6. Bb2 {[%emt 0:01:00]} Bd6 {[%emt 0:03:07]} 7. O-O {[%emt 0:00:30]} O-O {[%emt 0:00:11]} 8. Nbd2 {[%emt 0:04:10]} cxd4 {[%emt 0:06:52]} 9. exd4 {[%emt 0:01:38]} Nb4 {[%emt 0:03:37]} 10. Be2 {[%emt 0:01:32]} Qc7 {[%emt 0:08:19] D05: Colle System with ...e6.} 11. c3 {[%emt 0:01:29]} Nc6 {[%emt 0:01:33]} 12. c4 {[%emt 0:02:05]} Ne4 {[%emt 0:02:08] The position is equal.} 13. Re1 {[%emt 0:16:01] [#]} f5 $146 {[%emt 0:01:29]} ({Predecessor:} 13... Bb4 14. a3 Nc3 15. Qc2 Nxe2+ 16. Rxe2 Bd6 17. Nf1 f6 18. Ne3 Ne7 {½-½ (16) Bueno Gauna,C (2069)-Pompa Vega,D (1903) Havana 2018}) 14. Nf1 {[%emt 0:01:56]} Bb4 {[%emt 0:01:22]} 15. N3d2 {[%emt 0:01:52]} (15. N1d2 $11) 15... Qa5 $17 {[%emt 0:03:41][%cal Rb4d2] 0x0.00176344e866dp-1022s more active pieces.} 16. Nxe4 {[%emt 0:05:54]} fxe4 {[%emt 0:00:50]} 17. Ne3 {[%emt 0:02:09]} Bxe1 {[%emt 0:02:17]} 18. Qxe1 {[%emt 0:00:05]} Qd8 {[%emt 0:00:54]} 19. Rd1 {[%emt 0:03:40]} Qg5 {[%emt 0:02:16]} ({Black should play} 19... Kh8 $15) 20. Qd2 {[%emt 0:04:09]} (20. cxd5 $11 exd5 21. Nxd5) 20... Kh8 {[%emt 0:04:14]} 21. Ng4 {[%emt 0:05:56]} Qf5 {[%emt 0:03:44]} 22. f3 {[%emt 0:01:52]} Bd7 {[%emt 0:03:04][%cal Re4f3]} 23. fxe4 {[%emt 0:05:32]} Qxe4 {[%emt 0:01:26]} 24. Bf3 {[%emt 0:03:37]} Qg6 {[%emt 0:02:26]} 25. Qe2 {[%emt 0:02:12]} Rf4 {[%emt 0:03:04]} 26. Nf2 {[%emt 0:11:45]} Raf8 {[%emt 0:01:52]} 27. Kh1 {[%emt 0:00:17]} Qf5 {[%emt 0:06:43]} 28. Ng4 {[%emt 0:04:28]} Qf7 {[%emt 0:13:24] Hoping for ...dxc4.} 29. h3 {[%emt 0:04:20]} (29. Ne3 $17) 29... Be8 {[%emt 0:02:35]} (29... dxc4 $19 30. bxc4 e5 31. dxe5 Be6) 30. Ba3 $2 {[%emt 0:06:34] Now White is beyond hope.} (30. Ne3 $17) 30... Nxd4 $19 {[%emt 0:00:59]} ({Worse is} 30... Rxf3 31. Bxf8 Rf5 32. Bd6 $11) 31. Rxd4 {[%emt 0:03:05]} Rxd4 {[%emt 0:00:23][%cal Bf4d4,Bd4d2,Bd2a2][%mdl 32]} 32. Bxf8 {[%emt 0:00:04]} Qxf8 {[%emt 0:01:08]} 33. cxd5 {[%emt 0:01:32]} exd5 {[%emt 0:01:11]} 34. Qe5 {[%emt 0:00:44]} Rd2 {[%emt 0:02:34]} 35. Qc3 {[%emt 0:02:46]} Rxa2 {[%emt 0:01:29]} 36. Ne3 {[%emt 0:01:31]} Bc6 {[%emt 0:01:36][%cal Od5d4] [#] aiming for ...d4!} 37. Nxd5 {[%emt 0:00:45]} Bxd5 {[%emt 0:01:41]} 38. Bxd5 {[%emt 0:00:02]} b6 {[%emt 0:00:36]} 39. Bf3 {[%emt 0:02:14]} Rf2 {[%emt 0:02:15] ( -> ...Rf1+)} 40. Qd4 {[%emt 0:01:06] [#]} (40. Qd3 $19) 40... Rf1+ {[%emt 0:00:41]} 41. Kh2 {[%emt 0:30:10]} Qb8+ {[%emt 0:30:17] Weighted Error Value: White=0.57/Black=0.13 (very precise)} 0-1

[Event "GER-chT States Women 2022"]
[Site "Braunfels"]
[Date "2022.06.17"]
[Round "3.19"]
[White "Barpiyeva, Gulsana"]
[Black "Gressmann, Hanna"]
[Result "1-0"]
[ECO "D15"]
[WhiteElo "2016"]
[BlackElo "1892"]
[Annotator "TA"]
[PlyCount "69"]
[EventDate "2022.06.15"]
[EventType "swiss"]
[EventCountry "GER"]
[SourceTitle "playchess.com"]
[Source "ChessBase"]
[SourceQuality "1"]
[TimeControl "40/5400+30:1800+30"]

{[%evp 15,69,0,28,25,23,18,25,8,35,29,45,28,37,23,73,62,72,71,65,15,16,31,119,117,107,116,120,105,119,114,114,110,113,110,312,318,383,225,229,210,335,340,351,337,315,284,671,662,945,932,1389,968,866,950,900,874]} 1. d4 {[%emt 0:00:03]} d5 {[%emt 0:00:06]} 2. c4 {[%emt 0:00:14]} c6 {[%emt 0:00:09]} 3. Nc3 {[%emt 0:00:16]} Nf6 {[%emt 0:00:09]} 4. Nf3 {[%emt 0:00:42]} dxc4 {[%emt 0:00:33]} 5. e3 {[%emt 0:00:50]} b5 {[%emt 0:01:53][%cal Bb7b5,Bb5b4][%mdl 32]} 6. a4 {[%emt 0:02:21]} b4 {[%emt 0:00:34]} 7. Nb1 {[%emt 0:00:39]} e6 {[%emt 0:03:19]} 8. Bxc4 {[%emt 0:01:18]} a5 {[%emt 0:01:00]} 9. O-O {[%emt 0:02:24] D15: Slav Defence: 4 Nc3 a6 and gambit lines after 4 Nc3 dxc4.} Be7 {[%emt 0:00:50]} 10. Qe2 {[%emt 0:04:36]} O-O {[%emt 0:01:39]} 11. Rd1 {[%emt 0:05:53] [#] White has an edge.} Qc7 $146 {[%emt 0:06:04]} ({Predecessor:} 11... Nbd7 12. Nbd2 Bb7 13. Nb3 c5 14. Nxc5 Nxc5 15. dxc5 Qc7 16. h3 Rfd8 17. Rxd8+ Rxd8 {½-½ (28) Szabolcsi,J (2324)-Zentai,P (2236) Budapest 2014}) 12. b3 {[%emt 0:02:37]} Nbd7 {[%emt 0:04:44]} 13. e4 {[%emt 0:06:34]} Bb7 {[%emt 0:09:58]} 14. Bb2 {[%emt 0:04:24]} (14. Bg5 $5 {[%cal Re4e5]}) 14... Rfe8 {[%emt 0:04:38]} (14... c5 $11) 15. Nbd2 $16 {[%emt 0:02:19]} Rac8 {[%emt 0:13:27]} 16. Rac1 {[%emt 0:01:03]} Qb8 {[%emt 0:02:30]} 17. h3 {[%emt 0:12:37]} ({Better is} 17. Ne5 $14) 17... c5 $11 {[%emt 0:07:54]} 18. Bb5 {[%emt 0:03:35] [#] Black must now prevent e5.} Bc6 {[%emt 0:05:02]} (18... Red8 $14) 19. Bxc6 $16 {[%emt 0:02:08]} Rxc6 {[%emt 0:00:04]} 20. Nc4 {[%emt 0:00:45]} Qa8 {[%emt 0:01:16]} 21. d5 {[%emt 0:02:49]} exd5 {[%emt 0:03:01]} 22. exd5 {[%emt 0:01:38]} Ra6 {[%emt 0:04:45]} 23. Qd3 {[%emt 0:03:35] White is much more active.} Bf8 {[%emt 0:03:40]} 24. Rc2 {[%emt 0:05:27][%cal Bc1c2,Bc2c4,Bc4h4,Bh4g4][%mdl 32]} Nb6 $2 {[%emt 0:04:28] Loses the game.} (24... Rd8 $16 {was called for.} 25. Rcd2 h6) 25. Bxf6 $18 {[%emt 0:07:17]} gxf6 {[%emt 0:01:40]} 26. Qf5 {[%emt 0:01:57]} (26. Nh4 $142) 26... Nxc4 {[%emt 0:01:03]} 27. Rxc4 $40 {[%emt 0:00:37][%mdl 128] White attacks with force.} Qb8 {[%emt 0:03:26]} (27... Qc8 $142 28. Nd4 Qxf5 29. Nxf5 Rd8) 28. Rh4 {[%emt 0:06:11][%csl Gh4][%cal Rf5h7] [#]} h6 {[%emt 0:00:08]} 29. Rg4+ {[%emt 0:00:16]} Kh8 {[%emt 0:01:17]} 30. Qh5 {[%emt 0:02:16]} Re7 {[%emt 0:02:02]} (30... Qc7 31. Nh4 f5 32. Nxf5 Rf6) 31. Nh4 {[%emt 0:02:29] Nf5 is the strong threat. White is clearly winning.} Qe8 {[%emt 0:03:03]} 32. Nf5 {[%emt 0:04:27][%csl LRe7,LRh6] White wants to mate with Rg3.} Re5 {[%emt 0:03:15]} 33. f4 {[%emt 0:01:56]} Rxf5 {[%emt 0:02:04]} 34. Qxf5 {[%emt 0:00:14]} Rd6 {[%emt 0:00:39]} 35. Rd3 {[%emt 0:03:22] Weighted Error Value: White=0.15 (very precise) /Black=0.49} 1-0

[Event "GER-chT States Women 2022"]
[Site "Braunfels"]
[Date "2022.06.17"]
[Round "3.20"]
[White "Falke, Ornella"]
[Black "Buchholz, Maja"]
[Result "1/2-1/2"]
[ECO "A36"]
[WhiteElo "1844"]
[BlackElo "1945"]
[Annotator "NA RC"]
[PlyCount "81"]
[EventDate "2022.06.15"]
[EventType "swiss"]
[EventCountry "GER"]
[SourceTitle "playchess.com"]
[Source "ChessBase"]
[SourceQuality "1"]
[TimeControl "40/5400+30:1800+30"]

1. c4 {[%emt 0:00:04]} c5 {[%emt 0:00:09]} 2. Nc3 {[%emt 0:00:09]} g6 {[%emt 0:00:07]} 3. g3 {[%emt 0:00:48]} Bg7 {[%emt 0:00:05]} 4. Bg2 {[%emt 0:00:05]} Nc6 {[%emt 0:00:08]} 5. e4 {[%emt 0:00:45]} Nf6 {[%emt 0:00:55]} 6. Nge2 {[%emt 0:00:14]} O-O {[%emt 0:00:15]} 7. O-O {[%emt 0:01:06]} a6 {[%emt 0:00:42]} 8. d3 {[%emt 0:01:29]} Ne8 {[%emt 0:01:04]} 9. Be3 {[%emt 0:01:18]} d6 {[%emt 0:00:23]} 10. h3 {[%emt 0:02:54]} Rb8 {[%emt 0:00:49]} 11. a4 {[%emt 0:03:49]} Nc7 {[%emt 0:00:22]} 12. Qd2 {[%emt 0:17:02]} b5 {[%emt 0:07:21]} 13. Rab1 {[%emt 0:03:13]} bxc4 {[%emt 0:03:16]} 14. dxc4 {[%emt 0:00:34]} Ne5 {[%emt 0:00:49]} 15. b3 {[%emt 0:00:54]} Bxh3 {[%emt 0:00:22]} 16. Bh6 {[%emt 0:02:44]} Bxg2 {[%emt 0:05:31]} 17. Kxg2 {[%emt 0:00:14]} Ng4 {[%emt 0:03:41]} 18. Bxg7 {[%emt 0:00:40]} Kxg7 {[%emt 0:00:06]} 19. Rh1 {[%emt 0:05:45]} h5 {[%emt 0:00:45]} 20. f3 {[%emt 0:00:30]} Nf6 {[%emt 0:01:13]} 21. Nf4 {[%emt 0:03:39]} Rh8 {[%emt 0:01:38]} 22. Nce2 {[%emt 0:03:45]} Qd7 {[%emt 0:01:35]} 23. Qc3 {[%emt 0:01:51]} e5 {[%emt 0:08:31]} 24. Nd3 {[%emt 0:01:49]} Ne6 {[%emt 0:03:07]} 25. Rhd1 {[%emt 0:06:59]} Qc6 {[%emt 0:05:03]} 26. b4 {[%emt 0:05:02]} Qxa4 {[%emt 0:01:57]} 27. bxc5 {[%emt 0:03:33]} Qa2 {[%emt 0:07:59]} 28. Rb2 {[%emt 0:02:36]} Rxb2 {[%emt 0:00:38]} 29. Nxb2 {[%emt 0:00:22]} dxc5 {[%emt 0:01:35]} 30. Nc1 {[%emt 0:05:11]} Qa1 {[%emt 0:07:18]} 31. Ncd3 {[%emt 0:03:28]} Qa2 {[%emt 0:00:50]} 32. Nc1 {[%emt 0:03:01]} Qb1 {[%emt 0:00:34]} 33. Nb3 {[%emt 0:13:22]} Nxe4 {[%emt 0:02:29]} 34. Qxe5+ {[%emt 0:00:09]} f6 {[%emt 0:00:23]} 35. Rxb1 {[%emt 0:00:08]} fxe5 {[%emt 0:00:06]} 36. fxe4 {[%emt 0:00:04]} h4 {[%emt 0:01:34]} 37. Nd3 {[%emt 0:01:18]} h3+ {[%emt 0:02:42]} 38. Kh2 {[%emt 0:00:11]} Ng5 {[%emt 0:01:04]} 39. Nd2 {[%emt 0:00:10]} Rd8 {[%emt 0:01:18]} 40. Rb3 {[%emt 0:00:29]} Rd4 {[%emt 0:01:44]} 41. Ra3 {[%emt 0:35:52]} 1/2-1/2